bitfinex/quotes_BTCUSD_20230107
["timestamp","ask_amount","ask_price","bid_price","bid_amount"]
[1673112714995,1.80548743,16940.0,16939.0,0.02732998]
[1673112715206,1.18848083,16940.0,16939.0,0.02732998]
[1673112716260,1.80548743,16940.0,16939.0,0.02732998]
[1673112718208,1.18848083,16940.0,16939.0,0.02732998]
[1673112720745,1.80548743,16940.0,16939.0,0.02732998]
[1673112721267,1.18848083,16940.0,16939.0,0.02732998]
[1673112721528,1.80548743,16940.0,16939.0,0.02732998]
[1673112721780,1.18848083,16940.0,16939.0,0.02732998]
[1673112722044,1.80548743,16940.0,16939.0,0.02732998]
[1673112722295,1.18848083,16940.0,16939.0,0.02732998]
[1673112723662,1.80548743,16940.0,16939.0,0.02732998]
[1673112730239,1.18848083,16940.0,16939.0,0.02732998]
[1673112730762,1.80548743,16940.0,16939.0,0.02732998]
[1673112730992,1.80537148,16940.0,16939.0,0.02732998]
[1673112731732,1.18836488,16940.0,16939.0,0.02732998]
[1673112736144,1.80537148,16940.0,16939.0,0.02732998]
[1673112736401,1.18836488,16940.0,16939.0,0.02732998]
[1673112742433,1.18836488,16940.0,16939.0,0.58994633]
[1673112742688,1.18836488,16940.0,16939.0,1.08105533]
[1673112742943,1.18836488,16940.0,16939.0,0.58994633]
[1673112745339,0.61393252,16940.0,16939.0,0.58994633]
[1673112745600,0.61393252,16940.0,16939.0,1.08105533]
[1673112745853,0.96835382,16940.0,16939.0,0.58994633]
[1673112746108,0.61393252,16940.0,16939.0,0.58994633]
[1673112747021,0.96835164,16940.0,16939.0,0.58994633]
[1673112747278,0.61393252,16940.0,16939.0,0.58994633]
[1673112747535,0.96833977,16940.0,16939.0,0.58994633]
[1673112747779,0.61393252,16940.0,16939.0,0.58994633]
[1673112748034,0.96834192,16940.0,16939.0,0.58994633]
[1673112749057,0.61393252,16940.0,16939.0,0.59015431]
[1673112749324,0.96834196,16940.0,16939.0,0.59015431]
[1673112752640,0.85043971,16940.0,16939.0,0.59015431]
[1673112753652,0.96822288,16940.0,16939.0,0.59015431]
[1673112759940,1.23399041,16940.0,16939.0,0.59015431]
[1673112760194,1.23398739,16940.0,16939.0,0.59015431]
[1673112761448,0.79104529,16940.0,16939.0,0.59015431]
[1673112761760,1.23398739,16940.0,16939.0,0.59015431]
[1673112762717,0.79104529,16940.0,16939.0,0.59015431]
[1673112762978,1.23398739,16940.0,16939.0,0.59015431]
[1673112764219,0.79104529,16940.0,16939.0,0.59015431]
[1673112764455,1.23398739,16940.0,16939.0,0.59015431]
[1673112764697,0.79104529,16940.0,16939.0,0.59015431]
[1673112764919,1.23398739,16940.0,16939.0,0.59015431]
[1673112765428,0.96822288,16940.0,16939.0,0.59015431]
[1673112766769,1.23397207,16940.0,16939.0,0.59015431]
[1673112767246,0.96822288,16940.0,16939.0,0.59015431]
[1673112769524,1.23397637,16940.0,16939.0,0.59015431]
[1673112770513,0.79103427,16940.0,16939.0,0.59015431]
[1673112770766,1.23300137,16940.0,16939.0,0.59015431]
[1673112771510,1.23300137,16940.0,16939.0,0.58687797]
[1673112774880,1.23300137,16940.0,16939.0,0.58666999]
[1673112775365,0.96724788,16940.0,16939.0,0.58666999]
[1673112776081,0.96724788,16940.0,16939.0,1.07777899]
[1673112776337,1.2330234,16940.0,16939.0,1.07777899]
[1673112776593,1.2330234,16940.0,16939.0,0.58666999]
[1673112777156,1.23302364,16940.0,16939.0,0.58666999]
[1673112777432,1.23302364,16940.0,16939.0,1.07777899]
[1673112777924,1.23302364,16940.0,16939.0,0.58666999]
[1673112778663,0.79008154,16940.0,16939.0,1.07777899]
[1673112778885,0.79008154,16940.0,16939.0,0.58666999]
[1673112779141,0.79008154,16940.0,16939.0,1.07777899]
[1673112779409,0.79008154,16940.0,16939.0,0.58666999]
[1673112780172,0.96724788,16940.0,16939.0,0.58666999]
[1673112781792,0.96724788,16940.0,16939.0,1.07777899]
[1673112782595,1.23306284,16940.0,16939.0,0.58666999]
[1673112783333,0.96724788,16940.0,16939.0,0.58666999]
[1673112786899,0.96724788,16940.0,16939.0,1.07777899]
[1673112787158,0.96724788,16940.0,16939.0,0.58666999]
[1673112787913,0.96724788,16940.0,16939.0,1.07777899]
[1673112788388,0.96724788,16940.0,16939.0,0.58666999]
[1673112788892,0.96724788,16940.0,16939.0,1.07777899]
[1673112789337,0.96724788,16940.0,16939.0,0.58666999]
[1673112789851,0.96724788,16940.0,16939.0,1.07777899]
[1673112790356,0.96724788,16940.0,16939.0,0.58666999]
[1673112792368,0.96724788,16940.0,16939.0,1.07777899]
[1673112792598,0.96724788,16940.0,16939.0,0.58666999]
[1673112792860,0.96724788,16940.0,16939.0,1.07777899]
[1673112793340,0.96724788,16940.0,16939.0,0.58666999]
[1673112794031,0.96724788,16940.0,16939.0,1.07777899]
[1673112794467,0.96724788,16940.0,16939.0,0.58666999]
[1673112795197,0.96724788,16940.0,16939.0,1.07777899]
[1673112795439,0.96724788,16940.0,16939.0,0.58666999]
[1673112795660,0.96724788,16940.0,16939.0,1.07777899]
[1673112796161,0.96724788,16940.0,16939.0,0.58666999]
[1673112796413,0.96724788,16940.0,16939.0,1.07777899]
[1673112796685,0.96724788,16940.0,16939.0,0.58666999]
[1673112797174,0.96724788,16940.0,16939.0,1.07777899]
[1673112798794,0.96724788,16940.0,16939.0,0.58666999]
[1673112799516,0.96724788,16940.0,16939.0,1.07777899]
[1673112802253,0.96724788,16940.0,16939.0,0.58666999]
[1673112802492,0.96724788,16940.0,16939.0,1.07777899]
[1673112802740,0.96724788,16940.0,16939.0,0.58666999]
[1673112803454,0.96724788,16940.0,16939.0,1.07777899]
[1673112803920,0.96724788,16940.0,16939.0,0.58666999]
[1673112804176,0.96724788,16940.0,16939.0,1.07777899]
[1673112805197,0.96724788,16940.0,16939.0,0.58666999]
[1673112805671,0.96724788,16940.0,16939.0,0.02405364]
[1673112806976,0.61283844,16940.0,16939.0,0.02405364]
[1673112808625,0.61283844,16940.0,16939.0,0.02396386]
[1673112808626,1.21283844,16940.0,16939.0,0.02396386]
[1673112808881,1.82052344,16940.0,16939.0,0.02396386]
[1673112809112,1.21283844,16940.0,16939.0,0.02396386]
[1673112809373,0.61283844,16940.0,16939.0,0.02396386]
[1673112809808,0.61283844,16940.0,16939.0,0.51507286]
[1673112810503,0.61283844,16940.0,16939.0,0.02396386]
[1673112816444,0.96725171,16940.0,16939.0,0.02396386]
[1673112824134,0.61283844,16940.0,16939.0,0.02396386]
[1673112828258,0.96725064,16940.0,16939.0,0.02396386]
[1673112836529,0.96713457,16940.0,16939.0,0.02396386]
[1673112847976,0.96561473,16940.0,16939.0,0.02396386]
[1673112858531,0.96561473,16940.0,16939.0,0.51507286]
[1673112859541,0.96561473,16940.0,16939.0,0.02396386]
[1673112859796,0.96561473,16940.0,16939.0,0.51507286]
[1673112861338,0.96561473,16940.0,16939.0,0.02396386]
[1673112864297,0.96561473,16940.0,16939.0,0.02417184]
[1673112864815,1.58062883,16940.0,16939.0,0.51507286]
[1673112865089,0.96566665,16940.0,16939.0,0.02396386]
[1673112865610,0.96566665,16940.0,16939.0,0.02417184]
[1673112866102,0.96566665,16940.0,16939.0,0.02396386]
[1673112869994,1.56566665,16940.0,16939.0,0.02389751]
[1673112871865,1.21120253,16940.0,16939.0,0.02389751]
[1673112872134,1.56569499,16940.0,16939.0,0.02389751]
[1673112873193,0.96569499,16940.0,16939.0,0.02389751]
[1673112881249,0.91521773,16940.0,16939.0,0.51500651]
[1673112881500,0.9697169,16940.0,16939.0,0.02389751]
[1673112881754,0.9697169,16940.0,16939.0,0.51500651]
[1673112882003,0.9697169,16940.0,16939.0,0.02389751]
[1673112882253,0.9697169,16940.0,16939.0,0.51500651]
[1673112883002,0.9697169,16940.0,16939.0,0.02389751]
[1673112883500,0.61522444,16940.0,16939.0,0.02389751]
[1673112884522,1.22290944,16940.0,16939.0,0.02389751]
[1673112884800,1.23018662,16940.0,16939.0,0.02389751]
[1673112885065,0.61522444,16940.0,16939.0,0.02389751]
[1673112885306,1.23018662,16940.0,16939.0,0.02389751]
[1673112885563,0.61522444,16940.0,16939.0,0.02389751]
[1673112888829,0.96969372,16940.0,16939.0,0.02389751]
[1673112891217,0.96969372,16940.0,16939.0,0.64475502]
[1673112891475,0.96969372,16940.0,16939.0,0.65325502]
[1673112891738,0.96969372,16940.0,16939.0,1.14436402]
[1673112893061,0.96969372,16940.0,16939.0,0.65325502]
[1673112894086,0.96969372,16940.0,16939.0,1.14436402]
[1673112894324,1.23553188,16940.0,16939.0,1.14436402]
[1673112894549,0.79258978,16940.0,16939.0,1.14436402]
[1673112895804,0.79258978,16940.0,16939.0,0.65325502]
[1673112896567,0.79258978,16940.0,16939.0,1.14436402]
[1673112897790,0.79258978,16940.0,16939.0,0.65325502]
[1673112899027,0.79258978,16940.0,16939.0,1.14436402]
[1673112899640,0.79258978,16940.0,16939.0,0.65325502]
[1673112901442,0.78792678,16940.0,16939.0,0.65325502]
[1673112901934,0.78792678,16940.0,16939.0,1.14436402]
[1673112902684,0.78792678,16940.0,16939.0,0.65325502]
[1673112909834,0.78785436,16940.0,16939.0,1.15325502]
[1673112910092,0.78785436,16940.0,16939.0,0.65325502]
[1673112919956,0.78785436,16940.0,16939.0,1.14436402]
[1673112921004,0.96504222,16940.0,16939.0,1.14436402]
[1673112921253,0.78785436,16940.0,16939.0,0.65325502]
[1673112921766,0.78785436,16940.0,16939.0,0.62935751]
[1673112922030,0.79285436,16940.0,16939.0,0.75635751]
[1673112924275,0.79525236,16940.0,16939.0,0.75635751]
[1673112925449,0.79525236,16940.0,16939.0,1.24746651]
[1673112925911,0.79525236,16940.0,16939.0,0.75635751]
[1673112926435,0.97244628,16940.0,16939.0,0.75635751]
[1673112926683,0.617977,16940.0,16939.0,0.75635751]
[1673112927638,0.97245993,16940.0,16939.0,0.75635751]
[1673112927889,0.61799065,16940.0,16939.0,0.75635751]
[1673112939284,0.35215249,16940.0,16939.0,1.34671051]
[1673112939504,0.61799065,16940.0,16939.0,1.34671051]
[1673112943309,0.61799065,16940.0,16939.0,1.34664396]
[1673112943310,1.21799065,16940.0,16939.0,1.34664396]
[1673112943574,0.61799065,16940.0,16939.0,1.34664396]
[1673112946373,0.61799065,16940.0,16939.0,1.83775296]
[1673112946889,0.61799065,16940.0,16939.0,1.34664396]
[1673112949392,0.61799065,16940.0,16939.0,1.83775296]
[1673112950383,0.61799065,16940.0,16939.0,1.34664396]
[1673112951148,0.79525236,16940.0,16939.0,1.34664396]
[1673112951604,0.79525236,16940.0,16939.0,1.33814396]
[1673112952318,0.79525236,16940.0,16939.0,0.717353]
[1673112952835,0.79525236,16940.0,16939.0,0.127]
[1673112953597,0.79525236,16940.0,16939.0,0.618109]
[1673112954116,0.79525236,16940.0,16939.0,0.127]
[1673112955384,0.79525236,16940.0,16939.0,0.618109]
[1673112955636,0.79525236,16940.0,16939.0,0.127]
[1673112956160,0.79525236,16940.0,16939.0,0.618109]
[1673112957468,0.79525236,16940.0,16939.0,0.127]
[1673112957967,0.79525236,16940.0,16939.0,0.618109]
[1673112958473,0.79525236,16940.0,16939.0,0.127]
[1673112958730,0.79525236,16940.0,16939.0,0.618109]
[1673112959796,0.79525236,16940.0,16939.0,0.127]
[1673112961880,0.79525236,16940.0,16939.0,0.618109]
[1673112962353,0.79525236,16940.0,16939.0,0.127]
[1673112962622,0.79525236,16940.0,16939.0,0.618109]
[1673112963137,0.79525236,16940.0,16939.0,0.127]
[1673112966377,0.79525236,16940.0,16939.0,0.618109]
[1673112966879,0.97243444,16940.0,16939.0,0.618109]
[1673112967132,0.97243445,16940.0,16939.0,0.618109]
[1673112968140,0.79525236,16940.0,16939.0,0.127]
[1673112969689,0.79525236,16940.0,16939.0,0.618109]
[1673112970145,0.79525236,16940.0,16939.0,0.127]
[1673112970666,0.79525236,16940.0,16939.0,0.618109]
[1673112971165,0.79525236,16940.0,16939.0,0.127]
[1673112971638,0.79525236,16940.0,16939.0,0.618109]
[1673112972170,0.79525236,16940.0,16939.0,0.127]
[1673112972682,0.79525236,16940.0,16939.0,0.618109]
[1673112973128,0.79525236,16940.0,16939.0,0.127]
[1673112973633,0.79525236,16940.0,16939.0,0.618109]
[1673112974165,0.79525236,16940.0,16939.0,0.127]
[1673112974909,0.79525236,16940.0,16939.0,0.618109]
[1673112975379,0.79525236,16940.0,16939.0,0.127]
[1673112975635,0.97243894,16940.0,16939.0,0.717353]
[1673112975857,0.61796966,16940.0,16939.0,1.208462]
[1673112976331,0.61796966,16940.0,16939.0,0.717353]
[1673112976604,0.61796966,16940.0,16939.0,1.208462]
[1673112977370,0.97243894,16940.0,16939.0,1.208462]
[1673112977587,0.79525236,16940.0,16939.0,1.208462]
[1673112977809,0.79525236,16940.0,16939.0,0.717353]
[1673112978878,0.79525236,16940.0,16939.0,1.208462]
[1673112979409,0.79525236,16940.0,16939.0,0.717353]
[1673112979880,0.79525236,16940.0,16939.0,1.208462]
[1673112980364,0.79525236,16940.0,16939.0,0.717353]
[1673112980587,0.79525236,16940.0,16939.0,1.208462]
[1673112980872,0.79525236,16940.0,16939.0,0.717353]
[1673112981364,0.79525236,16940.0,16939.0,1.208462]
[1673112981610,0.79525236,16940.0,16939.0,0.717353]
[1673112983780,0.79525236,16940.0,16939.0,1.208462]
[1673112984287,0.79525236,16940.0,16939.0,0.717353]
[1673112985018,0.79525236,16940.0,16939.0,1.208462]
[1673112985484,0.79525236,16940.0,16939.0,0.717353]
[1673112985740,0.79525236,16940.0,16939.0,1.208462]
[1673112986259,0.79525236,16940.0,16939.0,0.717353]
[1673112988982,0.79525236,16940.0,16939.0,1.208462]
[1673112990339,0.79525236,16940.0,16939.0,0.717353]
[1673112991141,0.79525236,16940.0,16939.0,1.208462]
[1673112992917,0.79525236,16940.0,16939.0,0.717353]
[1673112993679,0.79525236,16940.0,16939.0,1.208462]
[1673112996691,0.79525236,16940.0,16939.0,1.216962]
[1673112999420,0.97248417,16940.0,16939.0,1.216962]
[1673112999906,0.61801489,16940.0,16939.0,1.216962]
[1673113000501,0.61801334,16940.0,16939.0,1.216962]
[1673113005120,0.61782494,16940.0,16939.0,1.216962]
[1673113005644,0.61782494,16940.0,16939.0,0.725853]
[1673113006715,0.61782494,16940.0,16939.0,1.216962]
[1673113007735,0.61782494,16940.0,16939.0,0.725853]
[1673113009241,0.61762052,16940.0,16939.0,1.325853]
[1673113009496,0.61762052,16940.0,16939.0,1.216962]
[1673113010011,0.61762052,16940.0,16939.0,1.807315]
[1673113010807,0.61762052,16940.0,16939.0,1.316206]
[1673113011336,0.61762052,16940.0,16939.0,1.807315]
[1673113011848,0.61762052,16940.0,16939.0,1.316206]
[1673113012347,0.61762052,16940.0,16939.0,1.807315]
[1673113012819,0.61762052,16940.0,16939.0,1.316206]
[1673113014598,0.61762052,16940.0,16939.0,1.807315]
[1673113015823,0.35178236,16940.0,16939.0,1.807315]
[1673113016326,0.35178236,16940.0,16939.0,1.316206]
[1673113017383,0.35178236,16940.0,16939.0,1.807315]
[1673113019062,0.35178236,16940.0,16939.0,1.316206]
[1673113019539,0.35178236,16940.0,16939.0,1.807315]
[1673113020345,0.3514748,16940.0,16939.0,1.807315]
[1673113020567,0.3514748,16940.0,16939.0,2.42227718]
[1673113020822,0.3514748,16940.0,16939.0,2.50862629]
[1673113021610,0.3514748,16940.0,16939.0,2.33146406]
[1673113022636,0.3514748,16940.0,16939.0,2.42227718]
[1673113022891,0.17424454,16940.0,16939.0,5.02396469]
[1673113023142,0.05348655,16941.0,16940.0,0.77723025]
[1673113023399,0.05348655,16941.0,16940.0,2.75389232]
[1673113023652,0.00440568,16941.0,16940.0,3.24496832]
[1673113024421,0.00440568,16941.0,16940.0,3.80618078]
[1673113024669,0.00740568,16941.0,16940.0,3.86418078]
[1673113026648,0.13491935,16941.0,16940.0,3.86418078]
[1673113028857,0.13491935,16941.0,16940.0,3.68715951]
[1673113029109,0.13491935,16941.0,16940.0,3.86418078]
[1673113032566,0.13491935,16941.0,16940.0,3.68715951]
[1673113037725,0.13491935,16941.0,16940.0,3.68736748]
[1673113038258,0.13491935,16941.0,16940.0,3.86186748]
[1673113039788,0.13491935,16941.0,16940.0,4.03888875]
[1673113042312,0.13491935,16941.0,16940.0,4.33888875]
[1673113042809,0.13491935,16941.0,16940.0,3.86186748]
[1673113045035,0.13491935,16941.0,16940.0,4.03888875]
[1673113045283,0.13491935,16941.0,16940.0,4.33888875]
[1673113046790,0.13491935,16941.0,16940.0,4.03888875]
[1673113047252,0.13491935,16941.0,16940.0,4.33888875]
[1673113051445,0.13491935,16941.0,16940.0,4.03888875]
[1673113052276,0.13491935,16941.0,16940.0,4.33888875]
[1673113054783,0.13491935,16941.0,16940.0,4.03888875]
[1673113055317,0.13491935,16941.0,16940.0,4.33888875]
[1673113055584,0.13491935,16941.0,16940.0,4.6046321]
[1673113055801,0.13051367,16941.0,16940.0,5.47694308]
[1673113056044,1e-08,16941.0,16940.0,5.47694308]
[1673113056554,0.12432482,16941.0,16940.0,5.47694308]
[1673113056811,0.12432482,16941.0,16940.0,4.79023062]
[1673113057069,0.12432482,16941.0,16940.0,5.44484458]
[1673113057343,0.12432482,16941.0,16940.0,5.68446713]
[1673113058348,0.12432482,16941.0,16940.0,5.62646713]
[1673113058575,0.12432482,16941.0,16940.0,5.76546713]
[1673113058827,0.12432482,16941.0,16940.0,5.62646713]
[1673113059087,0.12432482,16941.0,16940.0,6.11903344]
[1673113059343,0.12432482,16941.0,16940.0,5.76546713]
[1673113060584,0.12432482,16941.0,16940.0,5.32241367]
[1673113061336,0.12432482,16941.0,16940.0,5.18341367]
[1673113061589,0.00443189,16942.0,16941.0,0.8202689]
[1673113061844,0.00443189,16942.0,16941.0,5.35189221]
[1673113062101,0.00443189,16942.0,16941.0,5.84293521]
[1673113062607,0.12315724,16942.0,16941.0,5.84293521]
[1673113063100,0.12315724,16942.0,16941.0,5.98193521]
[1673113063355,0.12315724,16942.0,16941.0,6.24705794]
[1673113064392,0.12315724,16942.0,16941.0,5.80518975]
[1673113066406,0.12315724,16942.0,16941.0,5.98190869]
[1673113066658,0.12315724,16942.0,16941.0,5.62841414]
[1673113067936,0.12315724,16942.0,16941.0,5.80518975]
[1673113068462,0.12315724,16942.0,16941.0,5.98189614]
[1673113069182,0.12315724,16942.0,16941.0,5.98189352]
[1673113069689,0.12315724,16942.0,16941.0,5.80518975]
[1673113079981,0.12237133,16942.0,16941.0,5.80518975]
[1673113082001,0.12237133,16942.0,16941.0,5.72518975]
[1673113083557,0.12237133,16942.0,16941.0,6.27355238]
[1673113083817,0.12237133,16942.0,16941.0,6.09677731]
[1673113084088,0.12237133,16942.0,16941.0,5.54841468]
[1673113085350,0.11737133,16942.0,16941.0,5.54841468]
[1673113086090,1e-08,16942.0,16941.0,5.54841468]
[1673113086610,0.116028,16942.0,16941.0,6.21758102]
[1673113088557,0.116028,16942.0,16941.0,6.57107557]
[1673113088823,0.116028,16942.0,16941.0,5.90190923]
[1673113089088,0.116028,16942.0,16941.0,5.72518975]
[1673113089337,0.116028,16942.0,16941.0,6.23233996]
[1673113091093,0.116028,16942.0,16941.0,6.67420815]
[1673113091613,0.116028,16942.0,16941.0,6.40908542]
[1673113095813,0.116028,16942.0,16941.0,6.23508542]
[1673113096556,0.116028,16942.0,16941.0,5.88159087]
[1673113098776,0.116028,16942.0,16941.0,6.23552762]
[1673113100556,0.116028,16942.0,16941.0,6.09525872]
[1673113103084,0.116028,16942.0,16941.0,6.1236133]
[1673113103338,0.116028,16942.0,16941.0,5.76967655]
[1673113110394,0.11571682,16942.0,16941.0,5.76967655]
[1673113113567,0.11571682,16942.0,16941.0,5.32780836]
[1673113116105,0.53143641,16944.0,16942.0,0.6]
[1673113116352,0.53143641,16944.0,16943.0,2.22146996]
[1673113116609,0.05313641,16944.0,16943.0,3.58475994]
[1673113116866,0.00443189,16944.0,16943.0,4.1253825]
[1673113117119,0.00443189,16944.0,16943.0,3.25320457]
[1673113118406,0.00443189,16944.0,16943.0,3.99321369]
[1673113118916,0.00443189,16944.0,16943.0,3.39220457]
[1673113119150,0.00443189,16944.0,16943.0,3.12680779]
[1673113119399,0.00443189,16944.0,16943.0,3.12701572]
[1673113119648,0.11558182,16944.0,16943.0,3.12701572]
[1673113121700,0.11558182,16944.0,16943.0,3.72802484]
[1673113122015,0.11558182,16944.0,16943.0,3.12701572]
[1673113122458,0.11558182,16944.0,16943.0,2.63603672]
[1673113122957,0.11558182,16944.0,16943.0,3.12701372]
[1673113124230,0.11558182,16944.0,16943.0,3.72802284]
[1673113124482,0.11558182,16944.0,16943.0,3.12701372]
[1673113124754,0.11558182,16944.0,16943.0,3.72802284]
[1673113128323,0.11558182,16944.0,16943.0,3.99341962]
[1673113128572,0.11558182,16944.0,16943.0,3.72802284]
[1673113128802,0.11558182,16944.0,16943.0,3.99341962]
[1673113129058,0.11558182,16944.0,16943.0,3.72802284]
[1673113134908,0.11558182,16944.0,16943.0,3.99341962]
[1673113135171,0.11558182,16944.0,16943.0,4.86560098]
[1673113136148,0.11558182,16944.0,16943.0,3.99341962]
[1673113136383,0.11558182,16944.0,16943.0,4.8656006]
[1673113137050,0.11558182,16944.0,16943.0,3.99341962]
[1673113137361,0.11558182,16944.0,16943.0,4.86560053]
[1673113138680,0.11558182,16944.0,16943.0,5.4595482]
[1673113140430,0.11558182,16944.0,16943.0,5.81341057]
[1673113140929,0.11558182,16944.0,16943.0,5.4595482]
[1673113142943,0.11558182,16944.0,16943.0,5.81341057]
[1673113143198,0.11558182,16944.0,16943.0,5.4595482]
[1673113144544,0.11558182,16944.0,16943.0,5.81341057]
[1673113144806,0.11558182,16944.0,16943.0,5.63647939]
[1673113145142,0.11558182,16944.0,16943.0,6.11340871]
[1673113145327,0.11558182,16944.0,16943.0,5.63647939]
[1673113145819,0.11558182,16944.0,16943.0,5.81340972]
[1673113146074,0.11558182,16944.0,16943.0,5.81341643]
[1673113146328,0.11558182,16944.0,16943.0,5.45955406]
[1673113146585,0.11558182,16944.0,16943.0,5.81341643]
[1673113146844,0.11558182,16944.0,16943.0,5.45955406]
[1673113153072,0.11558182,16944.0,16943.0,5.81341643]
[1673113153318,0.11558182,16944.0,16943.0,5.63647939]
[1673113153567,0.11558182,16944.0,16943.0,5.93647939]
[1673113156741,0.18088844,16945.0,16944.0,1.09405432]
[1673113157008,0.18088844,16945.0,16944.0,3.65289543]
[1673113157009,0.00365818,16945.0,16944.0,3.65289543]
[1673113157265,0.00365818,16945.0,16944.0,4.14383943]
[1673113157534,0.00365818,16945.0,16944.0,3.54471913]
[1673113157797,0.11228473,16945.0,16944.0,3.68371913]
[1673113158314,0.11228473,16945.0,16944.0,3.08371913]
[1673113159332,0.28951499,16945.0,16944.0,3.08371913]
[1673113159580,0.11228473,16945.0,16944.0,3.08371913]
[1673113161389,0.11228473,16945.0,16944.0,3.68283943]
[1673113161640,0.11228473,16945.0,16944.0,3.08371913]
[1673113162597,0.11228473,16945.0,16944.0,3.94823621]
[1673113163106,0.11228473,16945.0,16944.0,5.12036094]
[1673113163571,0.11228473,16945.0,16944.0,4.24823621]
[1673113163858,0.11228473,16945.0,16944.0,5.1203607]
[1673113164107,0.11228473,16945.0,16944.0,5.12036078]
[1673113164358,0.11228473,16945.0,16944.0,3.34911591]
[1673113164603,0.11228473,16945.0,16944.0,3.08371913]
[1673113164854,0.11228473,16945.0,16944.0,3.34911591]
[1673113165629,0.11228473,16945.0,16944.0,3.94823621]
[1673113165873,0.11228473,16945.0,16944.0,3.34911591]
[1673113167865,0.11228473,16945.0,16944.0,4.82035269]
[1673113168150,0.11228473,16945.0,16944.0,5.12035269]
[1673113168403,0.11228473,16945.0,16944.0,3.08371913]
[1673113169713,0.11228473,16945.0,16944.0,3.68283943]
[1673113169965,0.11228473,16945.0,16944.0,3.98283943]
[1673113170224,0.11228473,16945.0,16944.0,4.24823621]
[1673113170476,0.11228473,16945.0,16944.0,3.98283943]
[1673113171012,0.11228473,16945.0,16944.0,3.68283943]
[1673113171276,0.11228473,16945.0,16944.0,3.98283943]
[1673113171818,0.11228473,16945.0,16944.0,3.08371913]
[1673113172274,0.11228473,16945.0,16944.0,3.68283943]
[1673113173733,0.11228473,16945.0,16944.0,3.94823621]
[1673113174241,0.11228473,16945.0,16944.0,3.08371913]
[1673113177607,0.11228473,16945.0,16944.0,3.68283943]
[1673113178127,0.11228473,16945.0,16944.0,3.94823621]
[1673113178365,0.11228473,16945.0,16944.0,5.12035215]
[1673113183832,0.11228473,16945.0,16944.0,5.11865412]
[1673113188891,0.11228473,16945.0,16944.0,5.47251649]
[1673113189387,0.11207644,16945.0,16944.0,5.47251649]
[1673113190148,0.11207644,16945.0,16944.0,5.11865412]
[1673113191964,0.11207644,16945.0,16944.0,5.47251649]
[1673113192233,0.11207644,16945.0,16944.0,5.11865412]
[1673113192481,0.11207644,16945.0,16944.0,5.29560135]
[1673113192736,0.11207644,16945.0,16944.0,5.47248897]
[1673113193761,0.11207644,16945.0,16944.0,5.29560135]
[1673113194021,0.11207644,16945.0,16944.0,5.47248722]
[1673113194531,0.11207644,16945.0,16944.0,5.29560135]
[1673113199296,0.11207644,16945.0,16944.0,5.15660135]
[1673113199522,0.11207644,16945.0,16944.0,5.29560135]
[1673113199753,1e-08,16945.0,16944.0,5.15660135]
[1673113199996,1e-08,16945.0,16944.0,5.29560135]
[1673113200541,0.66999556,16946.0,16944.0,5.29560135]
[1673113200768,0.66999556,16946.0,16945.0,1.95451084]
[1673113201025,0.66999556,16946.0,16945.0,3.13479884]
[1673113201534,0.66999556,16946.0,16945.0,2.03649484]
[1673113201747,0.18119556,16946.0,16945.0,2.03649484]
[1673113202011,0.18119556,16946.0,16945.0,2.17049484]
[1673113204012,0.18119556,16946.0,16945.0,2.17070275]
[1673113204530,0.28803529,16946.0,16945.0,2.17070275]
[1673113205540,0.28803529,16946.0,16945.0,1.9937963]
[1673113206799,0.55387345,16946.0,16945.0,1.9937963]
[1673113209088,0.54887345,16946.0,16945.0,1.9937963]
[1673113209602,1.33469037,16946.0,16945.0,1.327788]
[1673113210364,1.77763247,16946.0,16945.0,1.327788]
[1673113210870,1.51193611,16946.0,16945.0,1.327788]
[1673113211382,1.33464092,16946.0,16945.0,1.327788]
[1673113212456,0.72695592,16946.0,16945.0,1.99639732]
[1673113213350,1.33464092,16946.0,16945.0,1.99639732]
[1673113217494,0.72695592,16946.0,16945.0,1.99639732]
[1673113218228,0.90145592,16946.0,16945.0,1.99639732]
[1673113219230,1.50914092,16946.0,16945.0,1.99639732]
[1673113219708,1.49414092,16946.0,16945.0,1.99639732]
[1673113219984,0.88645592,16946.0,16945.0,1.99639732]
[1673113220218,0.88645592,16946.0,16945.0,1.98789732]
[1673113222278,0.70899359,16946.0,16945.0,1.98789732]
[1673113225012,1.06346287,16946.0,16945.0,1.98789732]
[1673113225250,1.67114787,16946.0,16945.0,1.98789732]
[1673113225741,1.49414092,16946.0,16945.0,1.98789732]
[1673113226733,1.49414092,16946.0,16945.0,1.39775332]
[1673113227453,0.88645592,16946.0,16945.0,1.39775332]
[1673113228208,0.71195592,16946.0,16945.0,1.39775332]
[1673113231053,1.15489802,16946.0,16945.0,1.39775332]
[1673113231546,0.88925111,16946.0,16945.0,0.729144]
[1673113231983,1.15472688,16946.0,16945.0,0.729144]
[1673113232236,0.71178478,16946.0,16945.0,0.729144]
[1673113232749,1.15472688,16946.0,16945.0,0.729144]
[1673113233028,0.71178478,16946.0,16945.0,0.729144]
[1673113235183,0.71178478,16946.0,16945.0,1.26440074]
[1673113238671,0.88925111,16946.0,16945.0,1.26440074]
[1673113240469,1.49693611,16946.0,16945.0,1.26440074]
[1673113242502,1.49693611,16946.0,16945.0,1.26433123]
[1673113246028,0.88925111,16946.0,16945.0,1.26433123]
[1673113248322,1.06305111,16946.0,16945.0,1.26433123]
[1673113249328,0.70858183,16946.0,16945.0,1.26433123]
[1673113249835,1.06284697,16946.0,16945.0,1.26433123]
[1673113250084,1.0628447,16946.0,16945.0,1.26433123]
[1673113250393,1.6705297,16946.0,16945.0,1.26433123]
[1673113251084,1.31626683,16946.0,16945.0,1.26433123]
[1673113251586,1.31626683,16946.0,16945.0,0.67425674]
[1673113254413,1.31616442,16946.0,16945.0,0.67425674]
[1673113255505,0.70847942,16946.0,16945.0,0.67425674]
[1673113257535,1.31616442,16946.0,16945.0,0.67425674]
[1673113262189,1.31616442,16946.0,16945.0,0.139]
[1673113262696,0.70347942,16946.0,16945.0,0.139]
[1673113265903,0.70345242,16946.0,16945.0,0.139]
[1673113266150,0.26053732,16946.0,16945.0,0.139]
[1673113266379,0.70345234,16946.0,16945.0,0.139]
[1673113266602,0.26053732,16946.0,16945.0,0.139]
[1673113266832,0.70344295,16946.0,16945.0,0.139]
[1673113267341,1.31112795,16946.0,16945.0,0.139]
[1673113269126,0.86822232,16946.0,16945.0,0.139]
[1673113269831,0.26053732,16946.0,16945.0,0.139]
[1673113270847,0.70343702,16946.0,16945.0,0.139]
[1673113272601,0.26053732,16946.0,16945.0,0.139]
[1673113273089,0.86822232,16946.0,16945.0,0.139]
[1673113276279,0.69442232,16946.0,16945.0,0.139]
[1673113282191,0.08673732,16946.0,16945.0,0.139]
[1673113282743,0.69442232,16946.0,16945.0,0.139]
[1673113282994,1.29442232,16946.0,16945.0,0.13888667]
[1673113284437,0.69442232,16946.0,16945.0,0.13888667]
[1673113290745,0.69442232,16946.0,16944.0,1.81439108]
[1673113290993,0.08773732,16946.0,16945.0,0.14]